fUSD/lending_fUSD_20241121
["ID","MTS","AMOUNT","RATE_DAILY","PERIOD"]
[342965766,1732231840064,-363.38880276,0.00053384,30]
[342965767,1732231840074,-719.17543519,0.00053402,30]
[342965769,1732231840084,-297.73178064,0.00053402,30]
[342965771,1732231840096,-363.38880276,0.00053402,30]
[342965773,1732231840105,-150.0,0.00053402,30]
[342965775,1732231840115,-150.0,0.00053403,30]
[342965777,1732231840124,-150.0,0.00053406,30]
[342965779,1732231840134,-500.0,0.0005341,120]
[342965781,1732231840143,-150.0,0.00053415,30]
[342965783,1732231840153,-719.17543519,0.00053419,30]
[342965785,1732231840166,-297.73178064,0.00053419,30]
[342965787,1732231840175,-363.38880276,0.00053419,30]
[342965789,1732231840184,-150.0,0.00053428,30]
[342965791,1732231840193,-719.17543519,0.00053436,30]
[342965793,1732231840203,-297.73178064,0.00053436,30]
[342965795,1732231840212,-363.38880276,0.00053436,30]
[342965797,1732231840221,-150.0,0.00053441,30]
[342965799,1732231840231,-150.0,0.00053449,30]
[342965801,1732231840240,-719.17543519,0.00053454,30]
[342965803,1732231840250,-297.73178064,0.00053454,30]
[342965805,1732231840259,-363.38880276,0.00053454,30]
[342965807,1732231840268,-150.0,0.00053454,30]
[342965809,1732231840278,-719.17543519,0.00053471,30]
[342965811,1732231840288,-297.73178064,0.00053471,30]
[342965813,1732231840299,-363.38880276,0.00053471,30]
[342965815,1732231840309,-150.0,0.00053474,7]
[342965817,1732231840318,-150.0,0.00053476,30]
[342965819,1732231840328,-150.0,0.0005348,30]
[342965821,1732231840340,-719.17543519,0.00053488,30]
[342965823,1732231840349,-297.73178064,0.00053488,30]
[342965825,1732231840358,-363.38880276,0.00053488,30]
[342965827,1732231840368,-150.0,0.00053496,30]
[342965829,1732231840377,-151.112205,0.00053498,120]
[342965831,1732231840386,-150.0,0.000535,103]
[342965832,1732231840396,-719.17543519,0.00053506,30]
[342965833,1732231840406,-297.73178064,0.00053506,30]
[342965835,1732231840416,-363.38880276,0.00053506,30]
[342965837,1732231840426,-150.0,0.00053506,30]
[342965839,1732231840436,-500.0,0.00053506,120]
[342965841,1732231840446,-500.0,0.00053506,120]
[342965843,1732231840456,-500.0,0.00053506,120]
[342965845,1732231840466,-199.0,0.00053506,120]
[342965847,1732231840475,-212.21416816,0.00053506,120]
[342965849,1732231840485,-196.5,0.00053506,120]
[342965851,1732231840494,-150.0,0.00053511,30]
[342965853,1732231840504,-719.17543519,0.00053523,30]
[342965855,1732231840513,-297.73178064,0.00053523,30]
[342965857,1732231840523,-363.38880276,0.00053523,30]
[342965859,1732231840533,-150.14,0.00053526,2]
[342965861,1732231840543,-150.0,0.00053532,30]
[342965863,1732231840552,-719.17543519,0.0005354,30]
[342965865,1732231840562,-297.73178064,0.0005354,30]
[342965867,1732231840571,-363.38880276,0.0005354,30]
[342965868,1732231840580,-150.0,0.00053542,30]
[342965869,1732231840591,-150.0,0.00053546,30]
[342965870,1732231840600,-500.0,0.00053547,120]
[342965871,1732231840610,-492.67,0.00053547,120]
[342965872,1732231840620,-548.74917192,0.00053547,120]
[342965873,1732231840630,-412.99,0.00053547,120]
[342965874,1732231840639,-500.0,0.00053547,120]
[342965875,1732231840649,-150.0,0.00053547,7]
[342965876,1732231840658,-1000.0,0.00053547,120]
[342965877,1732231840667,-500.0,0.00053547,120]
[342965878,1732231840677,-719.17543519,0.00053558,30]
[342965879,1732231840686,-297.73178064,0.00053558,30]
[342965880,1732231840696,-150.0,0.00053558,30]
[342965881,1732231840705,-363.38880276,0.00053558,30]
[342965882,1732231840715,-150.0,0.00053558,30]
[342965883,1732231840724,-150.0,0.00053558,30]
[342965884,1732231840734,-150.0,0.00053559,7]
[342965885,1732231840744,-150.0,0.00053563,7]
[342965886,1732231840754,-150.0,0.00053568,7]
[342965887,1732231840763,-719.17543519,0.00053575,30]
[342965888,1732231840772,-297.73178064,0.00053575,30]
[342965889,1732231840782,-363.38880276,0.00053575,30]
[342965890,1732231840791,-150.0,0.00053581,30]
[342965891,1732231840800,-150.0,0.00053583,30]
[342965892,1732231840809,-150.0,0.00053588,30]
[342965893,1732231840818,-150.0,0.00053591,7]
[342965894,1732231840826,-719.17543519,0.00053592,30]
[342965895,1732231840836,-297.73178064,0.00053592,30]
[342965896,1732231840845,-363.38880276,0.00053592,30]
[342965897,1732231840855,-2822.0183881,0.00053598,2]
[342965898,1732231840868,-564.4036776,0.00053598,2]
[342965899,1732231840877,-150.0,0.00053604,7]
[342965900,1732231840886,-19213.24641855,0.00053606,120]
[342965901,1732231840895,-719.17543519,0.00053609,30]
[342965902,1732231840905,-297.73178064,0.00053609,30]
[342965903,1732231840915,-363.38880276,0.00053609,30]
[342965904,1732231840923,-150.0,0.00053609,30]
[342965905,1732231840932,-150.0,0.00053616,30]
[342965906,1732231840942,-719.17543519,0.00053627,30]
[342965907,1732231840951,-297.73178064,0.00053627,30]
[342965908,1732231840959,-363.38880276,0.00053627,30]
[342965909,1732231840969,-150.0,0.00053635,30]
[342965910,1732231840978,-150.0,0.00053635,30]
[342965911,1732231840987,-719.17543519,0.00053644,30]
[342965912,1732231840997,-297.73178064,0.00053644,30]
[342965913,1732231841006,-363.38880276,0.00053644,30]
[342965914,1732231841016,-150.0,0.00053651,30]
[342965915,1732231841025,-719.17543519,0.00053661,30]
[342965916,1732231841034,-297.73178064,0.00053661,30]
[342965917,1732231841043,-363.38880276,0.00053661,30]
[342965918,1732231841052,-150.0,0.00053661,30]
[342965919,1732231841061,-719.17543519,0.00053679,30]
[342965920,1732231841071,-297.73178064,0.00053679,30]
[342965921,1732231841080,-363.38880276,0.00053679,30]
[342965922,1732231841090,-150.0,0.00053681,30]
[342965923,1732231841100,-500.0,0.00053684,120]
[342965924,1732231841109,-150.0,0.00053686,30]
[342965925,1732231841118,-150.0,0.00053687,30]
[342965926,1732231841128,-719.17543519,0.00053696,30]
[342965927,1732231841137,-297.73178064,0.00053696,30]
[342965928,1732231841146,-363.38880276,0.00053696,30]
[342965929,1732231841155,-200.0,0.000537,120]
[342965930,1732231841164,-200.0,0.000537,120]
[342965931,1732231841174,-150.0,0.00053701,7]
[342965932,1732231841182,-150.0,0.00053702,7]
[342965933,1732231841191,-719.17543519,0.00053713,30]
[342965934,1732231841200,-297.73178064,0.00053713,30]
[342965935,1732231841209,-363.38880276,0.00053713,30]
[342965936,1732231841218,-150.0,0.00053713,30]
[342965937,1732231841227,-150.0,0.00053717,7]
[342965938,1732231841236,-150.0,0.00053721,30]
[342965939,1732231841245,-150.0,0.00053727,30]
[342965940,1732231841255,-719.17543519,0.00053731,30]
[342965941,1732231841264,-297.73178064,0.00053731,30]
[342965942,1732231841274,-363.38880276,0.00053731,30]
[342965943,1732231841284,-150.0,0.00053739,30]
[342965944,1732231841294,-719.17543519,0.00053748,30]
[342965945,1732231841303,-297.73178064,0.00053748,30]
[342965946,1732231841313,-363.38880276,0.00053748,30]
[342965947,1732231841324,-150.0,0.00053748,30]
[342965948,1732231841334,-150.0,0.00053756,30]
[342965949,1732231841344,-719.17543519,0.00053765,30]
[342965950,1732231841354,-297.73178064,0.00053765,30]
[342965951,1732231841363,-363.38880276,0.00053765,30]
[342965952,1732231841372,-150.0,0.00053765,30]
[342965953,1732231841382,-1168.48,0.0005377,90]
[342965954,1732231841391,-1168.48,0.0005377,90]
[342965955,1732231841402,-1168.48,0.0005377,90]
[342965956,1732231841411,-1168.48,0.0005377,90]
[342965957,1732231841420,-150.0,0.00053774,30]
[342965958,1732231841430,-278.67,0.0005378,120]
[342965959,1732231841439,-500.0,0.0005378,120]
[342965960,1732231841448,-370.59,0.0005378,120]
[342965961,1732231841458,-719.17543519,0.00053783,30]
[342965962,1732231841467,-297.73178064,0.00053783,30]
[342965963,1732231841477,-363.38880276,0.00053783,30]
[342965964,1732231841486,-150.0,0.00053791,30]
[342965965,1732231841495,-150.0,0.00053791,30]
[342965966,1732231841505,-157.112205,0.00053798,120]
[342965967,1732231841513,-719.17543519,0.000538,30]
[342965968,1732231841522,-297.73178064,0.000538,30]
[342965969,1732231841531,-363.38880276,0.000538,30]
[342965970,1732231841540,-200.0,0.000538,120]
[342965971,1732231841549,-1000.0,0.000538,120]
[342965972,1732231841558,-1000.0,0.000538,120]
[342965973,1732231841567,-1000.0,0.000538,120]
[342965974,1732231841576,-1000.0,0.000538,120]
[342965975,1732231841586,-1000.0,0.000538,120]
[342965976,1732231841596,-1000.0,0.000538,120]
[342965977,1732231841604,-1000.0,0.000538,120]
[342965978,1732231841614,-159.72990993,0.000538,120]
[342965979,1732231841623,-182.73071644,0.00053811,14]
[342965980,1732231841633,-719.17543519,0.00053817,30]
[342965981,1732231841643,-297.73178064,0.00053817,30]
[342965982,1732231841652,-363.38880276,0.00053817,30]
[342965983,1732231841661,-150.0,0.00053817,30]
[342965984,1732231841670,-150.0,0.0005382,30]
[342965985,1732231841679,-500.0,0.00053821,120]
[342965986,1732231841688,-500.0,0.00053821,120]
[342965987,1732231841698,-1000.0,0.00053821,120]
[342965988,1732231841707,-604.23,0.00053821,120]
[342965989,1732231841716,-150.0,0.00053826,30]
[342965990,1732231841725,-150.0,0.00053826,7]
[342965991,1732231841734,-719.17543519,0.00053834,30]
[342965992,1732231841743,-297.73178064,0.00053834,30]
[342965993,1732231841752,-363.38880276,0.00053834,30]
[342965994,1732231841761,-150.0,0.00053841,7]
[342965995,1732231841770,-150.0,0.00053843,30]
[342965996,1732231841779,-150.0,0.00053843,30]
[342965997,1732231841787,-719.17543519,0.00053852,30]
[342965998,1732231841796,-297.73178064,0.00053852,30]
[342965999,1732231841806,-363.38880276,0.00053852,30]
[342966000,1732231841815,-150.0,0.00053853,7]
[342966001,1732231841823,-150.0,0.00053861,30]
[342966002,1732231841832,-150.0,0.00053863,7]
[342966003,1732231841842,-150.0,0.00053866,30]
[342966004,1732231841851,-719.17543519,0.00053869,30]
[342966005,1732231841861,-297.73178064,0.00053869,30]
[342966006,1732231841874,-363.38880276,0.00053869,30]
[342966007,1732231841883,-150.0,0.00053869,30]
[342966008,1732231841892,-719.17543519,0.00053886,30]
[342966009,1732231841901,-297.73178064,0.00053886,30]
[342966010,1732231841911,-363.38880276,0.00053886,30]
[342966011,1732231841920,-150.0,0.00053895,30]
[342966012,1732231841929,-150.0,0.00053896,30]
[342966013,1732231841938,-200.0,0.000539,120]
[342966014,1732231841949,-288.96,0.000539,120]
[342966015,1732231841958,-719.17543519,0.00053904,30]
[342966016,1732231841967,-297.73178064,0.00053904,30]
[342966017,1732231841975,-363.38880276,0.00053904,30]
[342966018,1732231841984,-150.0,0.00053904,120]
[342966019,1732231841993,-150.0,0.00053913,30]
[342966020,1732231842002,-150.0,0.0005392,7]
[342966021,1732231842011,-719.17543519,0.00053921,30]
[342966022,1732231842020,-297.73178064,0.00053921,30]
[342966023,1732231842029,-363.38880276,0.00053921,30]
[342966024,1732231842039,-150.0,0.00053921,30]
[342966025,1732231842048,-150.0,0.00053923,120]
[342966026,1732231842058,-150.0,0.00053931,30]
[342966027,1732231842067,-719.17543519,0.00053938,30]
[342966028,1732231842077,-297.73178064,0.00053938,30]
[342966029,1732231842086,-363.38880276,0.00053938,30]
[342966030,1732231842097,-150.0,0.00053938,30]
[342966031,1732231842106,-150.0,0.00053947,30]
[342966032,1732231842116,-300.0,0.00053952,14]
[342966033,1732231842125,-719.17543519,0.00053956,30]
[342966034,1732231842134,-297.73178064,0.00053956,30]
[342966035,1732231842144,-363.38880276,0.00053956,30]
[342966036,1732231842153,-508.02,0.00053958,120]
[342966037,1732231842162,-150.0,0.00053959,30]
[342966038,1732231842172,-150.0,0.00053966,30]
[342966039,1732231842181,-719.17543519,0.00053973,30]
[342966040,1732231842190,-297.73178064,0.00053973,30]
[342966041,1732231842199,-363.38880276,0.00053973,30]
[342966042,1732231842209,-150.0,0.00053973,30]
[342966043,1732231842218,-150.0,0.00053986,7]
[342966044,1732231842227,-719.17543519,0.0005399,30]
[342966045,1732231842236,-297.73178064,0.0005399,30]
[342966046,1732231842246,-363.38880276,0.0005399,30]
[342966047,1732231842257,-150.0,0.00053993,120]
[342966048,1732231842266,-150.0,0.00053999,30]
[342966049,1732231842275,-1000.0,0.00053999,120]
[342966050,1732231842285,-150.0,0.00053999,7]
[342966051,1732231842294,-1100.0,0.00054,120]
[342966052,1732231842303,-200.0,0.00054,120]
[342966053,1732231842312,-15000.0,0.00054,120]
[342966054,1732231842323,-650.0,0.00054,120]
[342966055,1732231842333,-151.0,0.00054,120]
[342966056,1732231842345,-850.0,0.00054,120]
[342966057,1732231842354,-150.0,0.00054,104]
[342966058,1732231842363,-151.52,0.00054,120]
[342966059,1732231842373,-151.52,0.00054,120]
[342966060,1732231842383,-151.52,0.00054,120]
[342966061,1732231842392,-151.52,0.00054,120]
[342966062,1732231842401,-151.52,0.00054,120]
[342966063,1732231842411,-151.52,0.00054,120]
[342966064,1732231842421,-151.52,0.00054,120]
[342966065,1732231842430,-151.52,0.00054,120]
[342966066,1732231842440,-151.52,0.00054,120]
[342966067,1732231842449,-151.52,0.00054,120]
[342966068,1732231842459,-151.52,0.00054,120]
[342966069,1732231842468,-151.52,0.00054,120]
[342966070,1732231842479,-151.52,0.00054,120]
[342966071,1732231842490,-151.52,0.00054,120]
[342966072,1732231842499,-151.52,0.00054,120]
[342966073,1732231842509,-151.52,0.00054,120]
[342966074,1732231842519,-151.52,0.00054,120]
[342966075,1732231842529,-151.52,0.00054,120]
[342966076,1732231842539,-151.52,0.00054,120]
[342966077,1732231842549,-151.52,0.00054,120]
[342966078,1732231842686,-151.52,0.00054,120]
[342966079,1732231842696,-151.52,0.00054,120]
[342966080,1732231842705,-151.52,0.00054,120]
[342966081,1732231842714,-151.52,0.00054,120]
[342966082,1732231842723,-151.52,0.00054,120]
[342966083,1732231842732,-151.52,0.00054,120]
[342966084,1732231842743,-151.52,0.00054,120]
[342966085,1732231842752,-151.52,0.00054,120]
[342966086,1732231842762,-151.52,0.00054,120]
[342966087,1732231842772,-151.52,0.00054,120]
[342966088,1732231842782,-151.52,0.00054,120]
[342966089,1732231842792,-151.52,0.00054,120]
[342966090,1732231842803,-151.52,0.00054,120]
[342966091,1732231842812,-151.52,0.00054,120]
[342966092,1732231842822,-151.52,0.00054,120]
[342966093,1732231842831,-151.52,0.00054,120]
[342966094,1732231842841,-151.52,0.00054,120]
[342966095,1732231842850,-151.52,0.00054,120]
[342966096,1732231842863,-151.52,0.00054,120]
[342966097,1732231842873,-151.52,0.00054,120]
[342966098,1732231842883,-151.52,0.00054,120]
[342966099,1732231842892,-151.52,0.00054,120]
[342966100,1732231842902,-151.52,0.00054,120]
[342966101,1732231842911,-151.52,0.00054,120]
[342966102,1732231842920,-151.52,0.00054,120]
[342966104,1732231842932,-151.52,0.00054,120]
[342966106,1732231842943,-151.52,0.00054,120]
[342966108,1732231842955,-151.52,0.00054,120]
[342966110,1732231842964,-151.52,0.00054,120]
[342966112,1732231842973,-151.52,0.00054,120]
[342966114,1732231842983,-151.52,0.00054,120]
[342966116,1732231842993,-151.52,0.00054,120]
[342966118,1732231843002,-151.52,0.00054,120]
[342966120,1732231843012,-151.52,0.00054,120]
[342966122,1732231843021,-151.52,0.00054,120]
[342966123,1732231843031,-151.52,0.00054,120]
[342966124,1732231843040,-151.52,0.00054,120]
[342966125,1732231843050,-151.52,0.00054,120]
[342966126,1732231843060,-151.52,0.00054,120]
[342966127,1732231843070,-151.52,0.00054,120]
[342966128,1732231843080,-151.52,0.00054,120]
[342966129,1732231843091,-151.52,0.00054,120]
[342966130,1732231843100,-151.52,0.00054,120]
[342966131,1732231843110,-151.52,0.00054,120]
[342966132,1732231843120,-151.52,0.00054,120]
[342966133,1732231843130,-151.52,0.00054,120]
[342966134,1732231843140,-151.52,0.00054,120]
[342966135,1732231843150,-151.52,0.00054,120]
[342966136,1732231843159,-151.52,0.00054,120]
[342966138,1732231843168,-151.52,0.00054,120]
[342966139,1732231843178,-151.52,0.00054,120]
[342966141,1732231843188,-151.52,0.00054,120]
[342966143,1732231843197,-151.52,0.00054,120]
[342966145,1732231843206,-151.52,0.00054,120]
[342966147,1732231843215,-151.52,0.00054,120]
[342966149,1732231843225,-151.52,0.00054,120]
[342966151,1732231843235,-151.52,0.00054,120]
[342966153,1732231843244,-151.52,0.00054,120]
[342966155,1732231843254,-151.52,0.00054,120]
[342966157,1732231843263,-151.52,0.00054,120]
[342966159,1732231843274,-151.52,0.00054,120]
[342966160,1732231843284,-151.52,0.00054,120]
[342966162,1732231843294,-151.52,0.00054,120]
[342966164,1732231843303,-151.52,0.00054,120]
[342966166,1732231843313,-151.52,0.00054,120]
[342966169,1732231843325,-151.52,0.00054,120]
[342966171,1732231843334,-151.52,0.00054,120]
[342966172,1732231843344,-151.52,0.00054,120]
[342966173,1732231843354,-151.52,0.00054,120]
[342966174,1732231843363,-151.52,0.00054,120]
[342966175,1732231843373,-151.52,0.00054,120]
[342966176,1732231843382,-151.52,0.00054,120]
[342966177,1732231843391,-150.0,0.00054001,30]
[342966178,1732231843400,-150.0,0.00054005,30]
[342966179,1732231843409,-719.17543519,0.00054008,30]
[342966180,1732231843419,-297.73178064,0.00054008,30]
[342966181,1732231843428,-363.38880276,0.00054008,30]
[342966182,1732231843437,-150.0,0.00054015,7]
[342966183,1732231843447,-2822.0183881,0.00054015,2]
[342966184,1732231843456,-564.4036776,0.00054015,2]
[342966185,1732231843466,-719.17543519,0.00054025,30]
[342966186,1732231843476,-297.73178064,0.00054025,30]
[342966187,1732231843487,-363.38880276,0.00054025,30]
[342966188,1732231843497,-150.0,0.00054025,30]
[342966189,1732231843507,-226.36785831,0.00054029,7]
[342966190,1732231843516,-150.0,0.00054036,30]
[342966191,1732231843526,-719.17543519,0.00054042,30]
[342966192,1732231843535,-297.73178064,0.00054042,30]
[342966193,1732231843545,-363.38880276,0.00054042,30]
[342966194,1732231843555,-1168.48,0.00054044,90]
[342966195,1732231843564,-1168.48,0.00054044,90]
[342966196,1732231843573,-150.0,0.00054051,30]
[342966197,1732231843583,-150.0,0.00054052,30]
[342966199,1732231843592,-500.0,0.00054054,120]
[342966201,1732231843601,-719.17543519,0.0005406,30]
[342966202,1732231843611,-297.73178064,0.0005406,30]
[342966203,1732231843620,-363.38880276,0.0005406,30]
[342966204,1732231843629,-150.0,0.00054062,7]
[342966205,1732231843639,-150.0,0.0005407,30]
[342966206,1732231843649,-719.17543519,0.00054077,30]
[342966207,1732231843660,-297.73178064,0.00054077,30]
[342966208,1732231843670,-363.38880276,0.00054077,30]
[342966209,1732231843680,-150.0,0.00054077,30]
[342966210,1732231843689,-150.0,0.00054087,14]
[342966211,1732231843698,-719.17543519,0.00054094,30]
[342966212,1732231843707,-297.73178064,0.00054094,30]
[342966213,1732231843715,-363.38880276,0.00054094,30]
[342966214,1732231843725,-500.0,0.00054095,120]
[342966215,1732231843734,-1000.0,0.00054095,120]
[342966216,1732231843743,-150.0,0.00054098,30]
[342966217,1732231843752,-200.0,0.000541,120]
[342966218,1732231843762,-150.0,0.00054103,30]
[342966219,1732231843771,-150.0,0.00054105,30]
[342966220,1732231843780,-150.0,0.00054111,120]
[342966221,1732231843789,-719.17543519,0.00054111,30]
[342966222,1732231843799,-297.73178064,0.00054111,30]
[342966223,1732231843808,-363.38880276,0.00054111,30]
[342966224,1732231843818,-150.0,0.00054121,7]
[342966225,1732231843827,-719.17543519,0.00054129,30]
[342966226,1732231843837,-297.73178064,0.00054129,30]
[342966227,1732231843847,-150.0,0.00054129,30]
[342966228,1732231843856,-363.38880276,0.00054129,30]
[342966229,1732231843868,-150.0,0.00054129,30]
[342966230,1732231843878,-150.0,0.00054129,30]
[342966231,1732231843887,-150.0,0.00054135,7]
[342966232,1732231843896,-150.0,0.0005414,30]
[342966233,1732231843907,-150.0,0.00054144,30]
[342966234,1732231843917,-150.0,0.00054145,7]
[342966235,1732231843926,-719.17543519,0.00054146,30]
[342966236,1732231843937,-297.73178064,0.00054146,30]
[342966237,1732231843946,-363.38880276,0.00054146,30]
[342966238,1732231843956,-176.89121322,0.00054149,28]
[342966239,1732231843966,-150.0,0.00054155,30]
[342966240,1732231843975,-719.17543519,0.00054163,30]
[342966241,1732231843985,-297.73178064,0.00054163,30]
[342966242,1732231843994,-363.38880276,0.00054163,30]
[342966243,1732231844004,-150.0,0.00054166,7]
[342966244,1732231844013,-150.0,0.00054175,30]
[342966245,1732231844023,-719.17543519,0.00054181,30]
[342966246,1732231844032,-297.73178064,0.00054181,30]
[342966247,1732231844041,-363.38880276,0.00054181,30]
[342966248,1732231844050,-150.0,0.00054181,30]
[342966249,1732231844060,-150.0,0.00054188,14]
[342966250,1732231844070,-150.0,0.00054189,7]
[342966251,1732231844079,-150.0,0.00054191,30]
[342966252,1732231844089,-151.112205,0.00054198,120]
[342966253,1732231844099,-719.17543519,0.00054198,30]
[342966254,1732231844108,-297.73178064,0.00054198,30]
[342966255,1732231844118,-363.38880276,0.00054198,30]
[342966256,1732231844130,-200.0,0.000542,120]
[342966257,1732231844139,-150.0,0.00054207,30]
[342966258,1732231844149,-150.0,0.0005421,30]
[342966259,1732231844158,-150.0,0.00054215,7]
[342966260,1732231844168,-719.17543519,0.00054215,30]
[342966261,1732231844177,-297.73178064,0.00054215,30]
[342966262,1732231844186,-363.38880276,0.00054215,30]
[342966263,1732231844196,-150.0,0.00054232,120]
[342966264,1732231844205,-719.17543519,0.00054233,30]
[342966265,1732231844215,-297.73178064,0.00054233,30]
[342966266,1732231844224,-363.38880276,0.00054233,30]
[342966267,1732231844234,-150.0,0.00054233,30]
[342966268,1732231844243,-150.0,0.00054233,7]
[342966269,1732231844252,-150.0,0.00054237,30]
[342966270,1732231844264,-150.0,0.00054239,7]
[342966271,1732231844274,-150.0,0.00054242,7]
[342966272,1732231844283,-150.0,0.00054245,30]
[342966273,1732231844292,-719.17543519,0.0005425,30]
[342966274,1732231844301,-297.73178064,0.0005425,30]
[342966275,1732231844310,-363.38880276,0.0005425,30]
[342966276,1732231844319,-150.0,0.00054254,7]
[342966277,1732231844330,-150.0,0.00054254,7]
[342966278,1732231844340,-163.79,0.00054257,120]
[342966279,1732231844350,-150.0,0.00054259,30]
[342966280,1732231844359,-719.17543519,0.00054267,30]
[342966281,1732231844368,-297.73178064,0.00054267,30]
[342966282,1732231844377,-363.38880276,0.00054267,30]
[342966283,1732231844387,-150.0,0.00054272,30]
[342966284,1732231844396,-150.0,0.00054276,7]
[342966285,1732231844405,-150.0,0.0005428,120]
[342966286,1732231844415,-150.0,0.0005428,7]
[342966287,1732231844424,-150.0,0.0005428,30]
[342966288,1732231844434,-150.0,0.00054283,30]
[342966289,1732231844444,-719.17543519,0.00054285,30]
[342966290,1732231844453,-297.73178064,0.00054285,30]
[342966291,1732231844462,-363.38880276,0.00054285,30]
[342966292,1732231844472,-150.0,0.00054285,30]
[342966293,1732231844482,-150.0,0.00054299,7]
[342966294,1732231844491,-200.0,0.000543,120]
[342966295,1732231844500,-719.17543519,0.00054302,30]
[342966296,1732231844509,-297.73178064,0.00054302,30]
[342966297,1732231844519,-363.38880276,0.00054302,30]
[342966298,1732231844528,-150.0,0.00054308,7]
[342966299,1732231844537,-150.0,0.00054311,30]
[342966300,1732231844547,-150.0,0.00054315,7]
[342966301,1732231844557,-150.0,0.00054315,30]
[342966302,1732231844566,-1168.48,0.00054317,90]
[342966303,1732231844576,-1168.48,0.00054317,90]
[342966304,1732231844586,-719.17543519,0.00054319,30]
[342966305,1732231844598,-297.73178064,0.00054319,30]
[342966306,1732231844611,-363.38880276,0.00054319,30]
[342966307,1732231844620,-150.0,0.00054319,30]
[342966308,1732231844630,-500.0,0.00054328,120]
[342966309,1732231844639,-150.0,0.00054329,30]
[342966310,1732231844648,-150.0,0.00054332,7]
[342966311,1732231844658,-719.17543519,0.00054336,30]
[342966312,1732231844667,-297.73178064,0.00054336,30]
[342966313,1732231844677,-363.38880276,0.00054336,30]
[342966314,1732231844686,-150.0,0.00054336,30]
[342966315,1732231844695,-150.0,0.00054338,7]
[342966316,1732231844703,-150.0,0.0005435,30]
[342966317,1732231844713,-719.17543519,0.00054354,30]
[342966318,1732231844722,-297.73178064,0.00054354,30]
[342966319,1732231844730,-363.38880276,0.00054354,30]
[342966320,1732231844739,-150.0,0.00054358,7]
[342966321,1732231844748,-150.0,0.00054359,7]
[342966322,1732231844757,-150.0,0.00054362,30]
[342966323,1732231844766,-500.0,0.00054369,120]
[342966324,1732231844775,-1000.0,0.00054369,120]
[342966325,1732231844784,-719.17543519,0.00054371,30]
[342966326,1732231844793,-297.73178064,0.00054371,30]
[342966327,1732231844801,-363.38880276,0.00054371,30]
[342966328,1732231844810,-150.0,0.00054376,30]
[342966329,1732231844819,-150.0,0.00054378,7]
[342966330,1732231844829,-150.0,0.00054381,120]
[342966331,1732231844838,-150.0,0.00054384,120]
[342966332,1732231844847,-150.0,0.00054385,30]
[342966333,1732231844856,-719.17543519,0.00054388,30]
[342966334,1732231844870,-297.73178064,0.00054388,30]
[342966335,1732231844879,-150.0,0.00054388,30]
[342966336,1732231844888,-200.0,0.000544,120]
[342966337,1732231844897,-719.17543519,0.00054406,30]
[342966338,1732231844906,-297.73178064,0.00054406,30]
[342966339,1732231844915,-150.0,0.00054409,120]
[342966340,1732231844923,-150.0,0.00054414,30]
[342966341,1732231844933,-150.0,0.0005442,30]
[342966342,1732231844943,-150.0,0.00054422,30]
[342966343,1732231844954,-719.17543519,0.00054423,30]